bitfinex/quotes_SOLUSD_20220211
["timestamp","ask_amount","ask_price","bid_price","bid_amount"]
[1644594341616,2.38366791,106.83,106.75,1.31811894]
[1644594341817,41.53570089,106.81,106.75,48.29292756]
[1644594342018,4.682,106.8,106.75,48.29292756]
[1644594342419,55.59030089,106.81,106.76,1.31811894]
[1644594342617,55.59030089,106.81,106.77,37.2748129]
[1644594343019,55.59030089,106.81,106.76,1.31811894]
[1644594343222,18.7344,106.82,106.76,1.31811894]
[1644594343521,14.3166,106.83,106.78,1.31811894]
[1644594343719,14.3166,106.83,106.77,1.31811894]
[1644594343919,4.681,106.82,106.77,1.31811894]
[1644594344123,18.9976,106.83,106.78,34.53739037]
[1644594344720,4.681,106.86,106.78,34.53739037]
[1644594344921,4.68,106.84,106.79,6.0]
[1644594345124,36.32234067,106.88,106.8,44.43391151]
[1644594345323,4.679,106.87,106.8,44.43391151]
[1644594345823,14.0479,106.86,106.8,44.43391151]
[1644594346025,4.68,106.85,106.8,44.43391151]
[1644594346425,2.38366791,106.85,106.8,44.43391151]
[1644594346644,45.9736087,106.84,106.78,1.31811894]
[1644594346839,14.052,106.83,106.78,1.31811894]
[1644594347039,4.681,106.82,106.77,1.31811894]
[1644594347242,51.311,106.82,106.77,1.31811894]
[1644594347439,28.3962,106.86,106.77,1.31811894]
[1644594347647,4.681,106.83,106.78,1.31811894]
[1644594347939,4.68,106.85,106.78,1.31811894]
[1644594348339,68.79058661,106.86,106.79,50.39783703]
[1644594348543,45.07538661,106.86,106.8,1.31811894]
[1644594348740,45.07538661,106.86,106.81,37.9110622]
[1644594348940,4.68,106.85,106.81,37.9110622]
[1644594349142,45.07538661,106.86,106.81,37.9110622]
[1644594349343,27.3522,106.88,106.81,37.9110622]
[1644594349550,14.0455,106.87,106.81,37.9110622]
[1644594349743,4.679,106.86,106.81,37.9110622]
[1644594350143,4.679,106.86,106.81,39.22918114]
[1644594350342,4.679,106.86,106.81,1.31811894]
[1644594350343,39.79930333,106.86,106.81,1.31811894]
[1644594350544,14.0508,106.84,106.8,1.31811894]
[1644594350746,4.68,106.83,106.78,1.31811894]
[1644594350943,4.681,106.84,106.78,1.31811894]
[1644594351147,2.38366791,106.84,106.78,1.31811894]
[1644594351344,46.63,106.82,106.78,1.31811894]
[1644594351546,46.63,106.82,106.79,42.64597637]
[1644594351751,4.681,106.81,106.79,42.64597637]
[1644594351943,60.682,106.82,106.79,42.64597637]
[1644594351944,14.052,106.82,106.79,42.64597637]
[1644594352144,14.052,106.82,106.78,1.31811894]
[1644594353146,14.0504,106.84,106.78,1.31811894]
[1644594353347,14.0504,106.84,106.79,1.31811894]
[1644594353545,14.0504,106.84,106.78,1.31811894]
[1644594353749,4.681,106.83,106.78,1.31811894]
[1644594353945,4.681,106.84,106.78,1.31811894]
[1644594354146,40.23054492,106.84,106.79,44.84249181]
[1644594354545,14.0514,106.83,106.79,1.31811894]
[1644594354745,4.681,106.82,106.78,1.31811894]
[1644594355145,4.681,106.83,106.78,1.31811894]
[1644594355344,51.311,106.83,106.78,1.31811894]
[1644594355546,44.6240505,106.82,106.78,1.31811894]
[1644594355750,18.7347,106.81,106.78,1.31811894]
[1644594356350,14.0537,106.81,106.78,1.31811894]
[1644594356550,14.0537,106.81,106.79,36.31717687]
[1644594356750,14.052,106.82,106.79,36.31717687]
[1644594356950,14.052,106.82,106.8,3.03219997]
[1644594357151,4.681,106.81,106.8,3.03219997]
[1644594357347,4.68,106.84,106.8,3.03219997]
[1644594357549,4.68,106.84,106.81,37.66603317]
[1644594357950,14.0507,106.83,106.81,37.66603317]
[1644594359452,14.0493,106.84,106.82,3.03219997]
[1644594359652,4.68,106.83,106.82,3.03219997]
[1644594360253,14.0493,106.84,106.82,3.03219997]
[1644594360652,45.74938682,106.86,106.83,48.06183491]
[1644594360855,4.68,106.89,106.84,3.03219997]
[1644594361056,54.72572617,106.91,106.84,4.37431891]
[1644594361355,54.72572617,106.91,106.85,0.024]
[1644594361559,54.72572617,106.91,106.85,1.34211894]
[1644594361754,94.73407608,106.91,106.86,29.64616579]
[1644594361957,40.00834991,106.91,106.86,29.64616579]
[1644594362358,29.1186,106.94,106.86,29.64616579]
[1644594362558,4.678,106.94,106.87,0.024]
[1644594363360,38.96620882,106.94,106.86,30.98828473]
[1644594364360,24.0885,106.95,106.86,44.45828473]
[1644594364560,14.0374,106.93,106.87,24.7123]
[1644594364760,4.676,106.95,106.87,24.7123]
[1644594364966,4.676,106.95,106.87,20.0363]
[1644594365563,4.676,106.95,106.88,42.84958978]
[1644594365762,14.0361,106.94,106.88,42.84958978]
[1644594366561,49.92627148,106.94,106.88,42.84958978]
[1644594367164,4.676,106.93,106.88,42.84958978]
[1644594367564,35.21298811,106.92,106.88,42.84958978]
[1644594367765,35.21298811,106.92,106.86,4.7]
[1644594367966,4.676,106.91,106.86,4.7]
[1644594368167,37.59665602,106.92,106.86,4.676]
[1644594368367,4.676,106.91,106.86,0.024]
[1644594368566,7.05966791,106.91,106.84,0.024]
[1644594368766,4.676,106.91,106.84,42.56761307]
[1644594368967,4.676,106.91,106.85,0.024]
[1644594369165,4.678,106.92,106.85,0.024]
[1644594369370,4.678,106.95,106.85,4.702]
[1644594369567,4.678,106.95,106.86,0.024]
[1644594369967,46.58990143,106.94,106.86,38.15618766]
[1644594370171,49.92267778,106.92,106.86,38.15618766]
[1644594370570,4.676,106.91,106.86,38.15618766]
[1644594371670,35.88407778,106.92,106.86,52.19358766]
[1644594372572,14.0374,106.93,106.86,52.19358766]
[1644594372895,4.676,106.92,106.86,52.19358766]
[1644594373496,14.0374,106.93,106.86,52.19358766]
[1644594373799,60.85445296,106.93,106.86,52.19358766]
[1644594374196,60.85445296,106.93,106.86,0.024]
[1644594374797,18.7155,106.92,106.86,0.024]
[1644594375198,18.7155,106.92,106.86,43.7024028]
[1644594376400,14.0395,106.92,106.86,43.7024028]
[1644594377507,14.0395,106.92,106.86,57.7400028]
[1644594377798,14.0375,106.93,106.86,57.7400028]
[1644594377999,14.0375,106.93,106.86,62.4160028]
[1644594378801,56.09917372,106.93,106.86,62.4160028]
[1644594379500,4.676,106.92,106.86,57.7400028]
[1644594381002,14.0362,106.94,106.86,57.7400028]
[1644594381203,4.677,106.96,106.89,14.0332]
[1644594381405,4.676,106.97,106.89,14.0332]
[1644594382006,37.40938079,106.96,106.89,14.0332]
[1644594382204,40.14287589,106.94,106.89,37.5226]
[1644594382604,4.676,106.93,106.89,37.5226]
[1644594382805,40.14287589,106.94,106.89,37.5226]
[1644594383204,4.676,106.95,106.9,40.47072217]
[1644594383407,18.7081,106.97,106.9,54.50342217]
[1644594383608,4.676,106.97,106.91,4.675]
[1644594383809,4.675,106.98,106.91,10.925]
[1644594384007,4.674,106.99,106.91,50.44326791]
[1644594384208,4.674,107.0,106.92,36.58874647]
[1644594384549,47.00235526,107.02,106.94,40.10863101]
[1644594384550,51.67735526,107.02,106.94,40.10863101]
[1644594384606,51.67735526,107.02,106.94,54.13553101]
[1644594384607,14.0269,107.01,106.94,54.13553101]
[1644594384807,14.0269,107.01,106.95,6.0]
[1644594385011,14.0269,107.01,106.96,34.56716972]
[1644594385206,47.38468065,107.0,106.96,34.56716972]
[1644594385406,14.0269,107.01,106.96,34.56716972]
[1644594385606,4.675,107.02,106.96,34.56716972]
[1644594385808,4.673,107.03,106.97,6.0]
[1644594386107,14.0255,107.02,106.96,34.56716972]
[1644594386307,4.673,107.01,106.96,34.56716972]
[1644594386507,39.91274312,107.01,106.96,34.56716972]
[1644594386708,35.23974312,107.01,106.93,23.1325]
[1644594386908,4.674,107.0,106.93,23.1325]
[1644594387108,18.7025,107.0,106.94,14.0273]
[1644594387308,4.674,107.02,106.94,14.0273]
[1644594387510,4.674,107.02,106.94,18.7003]
[1644594387710,4.673,107.03,106.95,6.0]
[1644594388010,4.673,107.03,106.95,29.0613]
[1644594388207,4.673,107.03,106.95,23.0613]
[1644594388411,36.72622945,107.02,106.96,52.33526285]
[1644594388709,4.673,107.01,106.96,52.33526285]
[1644594389111,37.07893078,107.0,106.96,52.33526285]
[1644594389311,37.07893078,107.0,106.96,14.0242]
[1644594389510,37.07893078,107.0,106.95,23.0613]
[1644594389511,37.07893078,107.0,106.95,37.0874]
[1644594389809,4.673,107.01,106.95,37.0874]
[1644594390710,4.673,107.01,106.96,46.18103789]
[1644594391516,38.2496648,107.0,106.95,37.0874]
[1644594392313,38.2496648,107.0,106.95,23.0613]
[1644594392516,4.673,106.99,106.94,4.673]
[1644594392716,38.57411628,106.98,106.94,4.673]
[1644594393114,40.95778419,106.98,106.94,4.673]
[1644594393311,18.7064,106.97,106.94,4.673]
[1644594393514,18.7064,106.97,106.92,43.21014901]
[1644594394915,46.39200037,106.96,106.92,43.21014901]
[1644594395118,4.675,106.95,106.92,43.21014901]
[1644594395815,4.675,106.96,106.92,43.21014901]
[1644594396215,4.675,106.96,106.9,14.0327]
[1644594397216,4.675,106.96,106.91,48.11120292]
[1644594398720,44.27140375,106.95,106.9,14.0327]
[1644594399521,18.7082,106.96,106.9,14.0327]
[1644594400125,14.0332,106.96,106.9,14.0327]
[1644594400625,54.88667989,106.96,106.9,61.99205929]
[1644594401324,4.675,106.95,106.9,61.99205929]
[1644594402728,4.676,106.98,106.9,61.99205929]
[1644594402924,29.5492,107.02,106.93,14.0285]
[1644594403725,39.08647105,107.01,106.93,40.74494144]
[1644594404327,39.08647105,107.01,106.95,42.96635243]
[1644594404928,39.08647105,107.01,106.94,24.7005]
[1644594405126,4.673,107.0,106.94,20.0265]
[1644594405334,18.7009,107.0,106.94,20.0265]
[1644594405528,14.0279,107.0,106.94,20.0265]
[1644594405926,14.0279,107.0,106.95,47.98841805]
[1644594406625,18.6994,107.01,106.95,64.39848596]
[1644594407024,18.6994,107.01,106.95,62.01481805]
[1644594408230,4.673,107.01,106.95,62.01481805]
[1644594408830,4.673,107.02,106.96,10.673]
[1644594409029,4.673,107.03,106.97,40.70978268]
[1644594409231,37.51474448,107.02,106.97,40.70978268]
[1644594409430,4.672,107.03,106.97,40.70978268]
[1644594409629,51.418,107.06,106.97,40.70978268]
[1644594410434,47.74126094,107.05,106.97,40.70978268]
[1644594410632,4.672,107.04,106.97,40.70978268]
[1644594411032,4.672,107.04,106.99,35.20706554]
[1644594412837,18.6944,107.04,106.99,35.20706554]
[1644594413237,41.07758391,107.03,106.99,35.20706554]
[1644594413436,41.07758391,107.03,106.98,14.0221]
[1644594414655,4.672,107.02,106.98,14.0221]
[1644594414854,39.45768225,107.01,106.97,14.0237]
[1644594415560,39.45768225,107.01,106.96,61.1415]
[1644594415760,36.71949398,106.99,106.93,88.62435694]
[1644594415960,4.674,106.98,106.93,49.352438]
[1644594416159,4.674,106.98,106.94,6.0]
[1644594416458,36.71949398,106.99,106.94,6.0]
[1644594417060,4.674,106.98,106.94,6.0]
[1644594417958,4.674,106.98,106.94,52.87328569]
[1644594418162,4.674,106.98,106.94,6.0]
[1644594418360,50.74859398,106.99,106.94,6.0]
[1644594418864,4.674,106.98,106.91,4.674]
[1644594419062,14.0358,106.96,106.91,4.674]
[1644594419363,47.60125265,106.95,106.91,4.674]
[1644594419662,42.92625265,106.95,106.86,5.99311894]
[1644594419861,4.676,106.94,106.86,5.99311894]
[1644594420262,42.92625265,106.95,106.86,5.99311894]
[1644594420460,42.92625265,106.95,106.87,34.2417493]
[1644594420669,14.0385,106.94,106.87,48.2776493]
[1644594420964,34.60854062,106.93,106.87,48.2776493]
[1644594421868,34.60854062,106.93,106.88,6.0]
[1644594422068,4.676,106.92,106.88,6.0]
[1644594422268,4.676,106.93,106.88,6.0]
[1644594422467,14.0385,106.94,106.88,6.0]
[1644594422869,14.0385,106.94,106.86,5.99311894]
[1644594423069,4.676,106.93,106.86,4.675]
[1644594423272,14.0395,106.92,106.86,4.675]
[1644594423469,4.676,106.91,106.86,4.675]
[1644594423871,45.41943809,106.92,106.87,46.46517065]
[1644594424068,4.676,106.91,106.85,33.50141894]
[1644594424270,45.41943809,106.92,106.85,33.50141894]
[1644594424469,4.676,106.91,106.85,28.82541894]
[1644594424677,4.676,106.91,106.85,27.5073]
[1644594425071,4.676,106.91,106.85,66.53746433]
[1644594425272,46.83331099,106.9,106.85,66.53746433]
[1644594425477,4.676,106.91,106.85,66.53746433]
[1644594425781,4.678,106.92,106.85,66.53746433]
[1644594426473,45.06392522,106.91,106.86,6.0]
[1644594427075,45.06392522,106.91,106.87,35.6456364]
[1644594427272,14.0381,106.93,106.87,35.6456364]
[1644594427573,14.0381,106.93,106.86,6.0]
[1644594427873,16.42176791,106.93,106.84,52.1958]
[1644594428075,4.676,106.92,106.84,0.024]
[1644594428277,14.0429,106.9,106.81,6.01811894]
[1644594428476,4.679,106.89,106.83,0.024]
[1644594428674,7.06266791,106.9,106.83,0.024]
[1644594429075,4.679,106.9,106.83,0.024]
[1644594429275,7.06266791,106.9,106.83,0.024]
[1644594429577,34.61654827,106.89,106.83,0.024]
[1644594429775,4.679,106.88,106.83,0.024]
[1644594431077,53.33884827,106.89,106.83,0.024]
[1644594431279,4.679,106.9,106.83,0.024]
[1644594431479,4.678,106.91,106.83,6.0]
[1644594431678,4.678,106.91,106.84,4.702]
[1644594432180,27.2036,106.92,106.86,37.7588925]
[1644594432380,4.678,106.92,106.86,37.7588925]
[1644594433278,39.37951277,106.91,106.86,37.7588925]
[1644594433480,4.676,106.9,106.86,37.7588925]
[1644594434679,14.0393,106.92,106.86,37.7588925]
[1644594435080,18.7158,106.94,106.86,37.7588925]
[1644594435281,4.676,106.92,106.87,6.0]
[1644594435481,4.676,106.95,106.87,21.85366791]
[1644594435681,39.45171886,106.96,106.88,41.59290823]
[1644594435882,39.45171886,106.96,106.88,55.06290823]
[1644594436085,4.676,106.96,106.88,55.06290823]
[1644594436283,4.676,106.96,106.89,20.0328]
[1644594436484,14.0328,106.97,106.9,4.676]
[1644594436683,14.0328,106.97,106.9,7.05966791]
[1644594437082,4.675,106.96,106.91,37.7588925]
[1644594437684,39.26878616,106.96,106.91,37.7588925]
[1644594438083,4.675,106.96,106.91,37.7588925]
[1644594439185,4.675,106.98,106.91,37.7588925]
[1644594440786,4.675,106.98,106.91,51.7890925]
[1644594442389,18.7066,106.98,106.91,37.7588925]
[1644594442688,45.61615057,106.97,106.91,37.7588925]
[1644594442988,4.675,106.96,106.91,37.7588925]
[1644594443688,59.64885057,106.97,106.91,37.7588925]
[1644594444689,4.675,106.96,106.89,19.47]
[1644594444892,64.32385057,106.97,106.89,19.47]
[1644594445089,59.64885057,106.97,106.89,19.47]
[1644594445695,59.64885057,106.97,106.89,33.5033]
[1644594445891,59.64885057,106.97,106.9,34.23085415]
[1644594446191,59.64885057,106.97,106.91,6.0]
[1644594446995,59.64885057,106.97,106.92,40.44494658]
[1644594447918,59.64885057,106.97,106.9,6.0]
[1644594448123,4.675,106.96,106.9,6.0]
[1644594448323,18.7096,106.96,106.87,24.73221894]
[1644594448618,18.7096,106.96,106.85,5.99411894]
[1644594448619,21.57326791,106.96,106.85,5.99411894]
[1644594448819,2.38366791,106.95,106.84,1.31811894]
[1644594449023,4.676,106.94,106.86,37.83710041]
[1644594449520,4.676,106.94,106.86,51.87390041]
[1644594449720,4.676,106.94,106.87,6.0]
[1644594449921,4.676,106.94,106.88,36.83870032]
[1644594450121,38.24953994,106.93,106.88,36.83870032]
[1644594450321,52.28763994,106.93,106.88,36.83870032]
[1644594450522,4.676,106.92,106.88,36.83870032]
[1644594451525,14.0381,106.93,106.88,36.83870032]
[1644594451724,14.0365,106.94,106.88,36.83870032]
[1644594452324,50.06146639,106.94,106.88,36.83870032]
[1644594452729,50.06146639,106.94,106.86,14.0371]
[1644594452928,18.7145,106.93,106.86,6.0]
[1644594453630,18.7145,106.93,106.85,4.676]
[1644594453830,39.8145299,106.92,106.83,0.024]
[1644594454039,14.0428,106.9,106.83,0.024]
[1644594454228,7.06166791,106.91,106.83,0.024]
[1644594454429,37.43086199,106.92,106.83,1.31811894]
[1644594454631,37.43086199,106.92,106.83,3.72578685]
[1644594454828,4.678,106.91,106.85,45.35265096]
[1644594455229,18.7181,106.91,106.85,45.35265096]
[1644594456233,41.01306698,106.9,106.85,45.35265096]
[1644594456430,4.678,106.89,106.85,45.35265096]
[1644594456635,4.678,106.89,106.83,1.34211894]
[1644594456842,4.678,106.89,106.83,0.024]
[1644594457230,4.678,106.89,106.83,6.024]
[1644594457731,4.678,106.89,106.84,37.56387043]
[1644594458136,14.0429,106.89,106.84,37.56387043]
[1644594458332,41.01306698,106.9,106.84,37.56387043]
[1644594458536,4.678,106.89,106.84,37.56387043]
[1644594458738,4.678,106.91,106.84,37.56387043]
[1644594459139,18.7181,106.91,106.84,37.56387043]
[1644594459635,54.38212778,106.91,106.84,37.56387043]
[1644594459834,18.7181,106.91,106.84,37.56387043]
[1644594461437,36.09569403,106.9,106.84,37.56387043]
[1644594461640,18.7214,106.89,106.84,37.56387043]
[1644594461838,18.7214,106.89,106.83,6.024]
[1644594461839,43.74218062,106.88,106.83,6.024]
[1644594462038,4.679,106.87,106.83,6.024]
[1644594462239,43.74218062,106.88,106.83,6.024]
[1644594462739,57.78618062,106.88,106.83,50.11256952]
[1644594462938,4.679,106.87,106.83,50.11256952]
[1644594463838,14.044,106.88,106.83,50.11256952]
[1644594464442,14.0428,106.89,106.83,50.11256952]
[1644594464840,41.32409562,106.91,106.83,52.49623743]
[1644594465243,41.32409562,106.91,106.83,50.11256952]
[1644594465643,14.0414,106.9,106.83,50.11256952]
[1644594465843,47.5493,106.92,106.84,2.38366791]
[1644594466042,4.678,106.9,106.84,2.38366791]
[1644594466244,4.678,106.91,106.85,6.0]
[1644594466686,45.09327987,106.91,106.85,30.58723121]
[1644594467247,45.09327987,106.91,106.83,1.34211894]
[1644594467445,45.09327987,106.91,106.83,0.024]
[1644594467846,45.09327987,106.91,106.83,6.024]
[1644594468245,45.09327987,106.91,106.84,48.59711769]
[1644594468546,54.45527987,106.91,106.84,48.59711769]
[1644594468748,14.04,106.91,106.84,48.59711769]
[1644594469746,47.5493,106.92,106.84,48.59711769]
[1644594469747,54.52429154,106.89,106.84,48.59711769]
[1644594470349,14.0426,106.89,106.84,48.59711769]
[1644594470651,14.0426,106.89,106.83,0.024]
[1644594470850,4.679,106.88,106.83,0.024]
[1644594471050,14.0458,106.87,106.82,47.0852]
[1644594471250,14.0458,106.87,106.81,1.31811894]
[1644594471452,14.0458,106.87,106.8,1.34211894]
[1644594471649,60.78977219,106.87,106.81,37.54414927]
[1644594475756,4.679,106.86,106.81,37.54414927]
[1644594475957,14.0458,106.87,106.81,38.86226821]
[1644594476156,14.0458,106.87,106.81,37.54414927]
[1644594476157,4.679,106.86,106.81,37.54414927]
[1644594476355,14.0458,106.87,106.81,37.54414927]
[1644594476656,14.0458,106.87,106.81,38.86226821]
[1644594477563,4.679,106.86,106.81,38.86226821]
[1644594478761,49.89029151,106.86,106.81,38.86226821]
[1644594479364,63.93649151,106.86,106.81,1.34211894]
[1644594479562,59.25749151,106.86,106.81,1.31811894]
[1644594480159,14.0462,106.86,106.81,1.31811894]
[1644594480962,4.68,106.85,106.81,1.34211894]
[1644594481263,4.68,106.85,106.82,42.92618149]
[1644594481779,4.68,106.86,106.83,6.06439994]
[1644594481978,14.0445,106.88,106.83,6.06439994]
[1644594481979,4.679,106.88,106.83,6.06439994]
[1644594482178,52.2283,106.92,106.84,6.0]
[1644594482378,52.2283,106.92,106.84,10.678]
[1644594482581,46.87515117,106.91,106.84,42.42761924]
[1644594482879,46.87515117,106.91,106.84,58.85128715]
[1644594483080,46.87515117,106.91,106.84,56.46761924]
[1644594483277,46.87515117,106.91,106.84,57.78573818]
[1644594483680,60.91475117,106.91,106.84,57.78573818]
[1644594483880,4.678,106.9,106.84,57.78573818]
[1644594484582,37.22922582,106.89,106.84,5.99611894]
[1644594484782,51.27142582,106.89,106.84,4.678]
[1644594484982,4.678,106.88,106.84,4.678]
[1644594486182,35.78896484,106.87,106.84,4.678]
[1644594486581,4.679,106.86,106.84,4.678]
[1644594487082,27.5527,106.9,106.82,0.024]
[1644594487381,14.0453,106.88,106.82,0.024]
[1644594488184,40.2604462,106.87,106.82,0.024]
[1644594488687,4.679,106.86,106.82,40.35550713]
[1644594489085,4.679,106.86,106.82,0.024]
[1644594489285,4.679,106.89,106.82,0.024]
[1644594489887,28.7557,106.92,106.83,2.38366791]
[1644594490092,4.679,106.9,106.84,1.31811894]
[1644594490292,4.678,106.91,106.84,53.72599646]
[1644594490489,4.678,106.91,106.84,55.0441154]
[1644594490693,49.82880175,106.91,106.84,55.0441154]
[1644594490893,4.678,106.91,106.84,55.0441154]
[1644594491692,18.7174,106.91,106.84,69.0842154]
[1644594492593,59.68102582,106.91,106.84,69.0842154]
[1644594492797,55.00302582,106.91,106.84,69.0842154]
[1644594492994,14.0394,106.91,106.84,69.0842154]
[1644594493895,14.0394,106.91,106.84,68.5842154]
[1644594494300,52.74949518,106.91,106.84,68.5842154]
[1644594494700,14.0394,106.91,106.84,68.5842154]
[1644594494903,18.7174,106.91,106.84,68.5842154]
[1644594495803,48.45264428,106.9,106.84,68.5842154]
[1644594496002,18.7203,106.89,106.84,14.78811894]
[1644594496202,18.7203,106.89,106.83,1.31811894]
[1644594496403,18.7203,106.89,106.82,1.34211894]
[1644594496604,18.7203,106.89,106.82,1.31811894]
[1644594497004,18.7203,106.89,106.83,35.75270037]
[1644594497203,36.73863252,106.88,106.83,35.75270037]
[1644594497408,14.0447,106.87,106.82,0.024]
[1644594497602,18.7237,106.87,106.82,0.024]
[1644594497803,18.7237,106.87,106.81,1.31811894]
[1644594498105,14.0447,106.87,106.81,1.31811894]
[1644594498504,14.0447,106.87,106.81,44.65373042]
[1644594498708,50.78193252,106.88,106.83,31.36418925]
[1644594498904,4.679,106.87,106.83,31.36418925]
[1644594499708,4.679,106.87,106.82,21.38501894]
[1644594499907,4.679,106.87,106.82,1.34211894]
[1644594499908,18.7236,106.87,106.82,1.34211894]
[1644594500108,14.0446,106.87,106.82,1.34211894]
[1644594500315,4.679,106.86,106.8,1.34211894]
[1644594500533,4.679,106.86,106.81,0.024]
[1644594500732,46.3769462,106.86,106.8,38.80955703]
[1644594500929,4.68,106.85,106.8,38.80955703]
[1644594501129,4.68,106.85,106.8,38.78555703]
[1644594501731,44.84370365,106.84,106.8,38.78555703]
[1644594501931,4.68,106.83,106.8,38.78555703]
[1644594502432,4.68,106.83,106.79,0.024]
[1644594502631,4.68,106.83,106.78,1.34211894]
[1644594503233,44.39271419,106.82,106.78,1.34211894]
[1644594503434,4.681,106.84,106.78,28.51051357]
[1644594503631,4.681,106.82,106.79,0.024]
[1644594503831,14.0501,106.83,106.8,6.06439994]
[1644594504032,4.68,106.84,106.8,6.06439994]
[1644594504233,4.68,106.86,106.8,6.06439994]
[1644594504432,37.72295895,106.85,106.81,0.024]
[1644594504639,37.72295895,106.85,106.8,6.06439994]
[1644594504640,4.68,106.84,106.79,0.024]
[1644594504838,4.68,106.84,106.77,14.78811894]
[1644594504839,18.7285,106.84,106.78,0.024]
[1644594505040,21.11216791,106.84,106.78,0.024]
[1644594505237,21.11216791,106.84,106.76,1.34211894]
[1644594505436,46.71894028,106.83,106.76,1.34211894]
[1644594505636,4.681,106.82,106.77,36.88124273]
[1644594505839,14.0547,106.81,106.77,36.88124273]
[1644594506036,4.681,106.82,106.77,36.88124273]
[1644594507440,18.7325,106.82,106.77,36.88124273]
[1644594507639,36.95987262,106.81,106.76,0.024]
[1644594507838,4.682,106.84,106.75,29.64151894]
[1644594508039,4.682,106.84,106.76,0.024]
[1644594508737,14.0526,106.81,106.76,35.62773775]
[1644594508938,4.682,106.8,106.76,35.62773775]
[1644594509140,14.0526,106.81,106.76,35.60373775]
[1644594509344,14.0526,106.81,106.76,35.62773775]
[1644594509539,4.682,106.8,106.76,35.62773775]
[1644594509740,4.682,106.8,106.76,35.60373775]
[1644594511143,59.53421412,106.81,106.76,35.60373775]
[1644594511340,59.53421412,106.81,106.76,35.62773775]
[1644594511641,14.0526,106.81,106.76,35.62773775]
[1644594512144,4.682,106.85,106.76,56.16340566]
[1644594512341,4.682,106.85,106.77,30.0871]
[1644594512542,4.681,106.86,106.78,18.175]
[1644594512741,4.681,106.86,106.79,6.024]
[1644594512941,4.681,106.86,106.79,8.40766791]
[1644594513342,14.0474,106.85,106.79,6.024]
[1644594513542,4.68,106.84,106.79,0.024]
[1644594513743,4.68,106.84,106.78,13.494]
[1644594513942,41.7608217,106.83,106.78,13.494]
[1644594514142,4.681,106.82,106.79,0.024]
[1644594514343,41.7608217,106.83,106.8,6.06439994]
[1644594514644,14.049,106.84,106.8,6.06439994]
[1644594515647,4.68,106.85,106.81,39.07206298]
[1644594516049,18.7277,106.85,106.81,39.07206298]
[1644594516248,4.68,106.85,106.81,39.07206298]
[1644594516445,4.68,106.86,106.81,39.07206298]
[1644594517047,18.7248,106.87,106.81,39.07206298]
[1644594517246,4.679,106.88,106.82,6.0]
[1644594517446,4.679,106.89,106.82,0.024]
[1644594517646,4.679,106.89,106.82,6.024]
[1644594517850,4.679,106.89,106.82,0.024]
[1644594518248,4.679,106.89,106.82,6.024]
[1644594518448,14.0421,106.89,106.82,20.067]
[1644594519550,18.7211,106.89,106.82,20.067]
[1644594519751,18.7211,106.89,106.82,14.067]
[1644594519953,24.831,106.9,106.82,14.067]
[1644594520151,38.872,106.9,106.83,6.0]
[1644594520352,14.041,106.9,106.83,20.0411]
[1644594520951,4.678,106.89,106.83,20.0411]
[1644594521153,14.0425,106.89,106.83,20.0411]
[1644594521455,4.679,106.88,106.83,14.0411]
[1644594522051,4.679,106.88,106.82,14.0672]
[1644594522260,14.0436,106.88,106.82,14.0672]
[1644594523056,4.679,106.9,106.82,14.0672]
[1644594523855,18.7201,106.9,106.82,14.0672]
[1644594524058,18.7201,106.9,106.83,20.0408]
[1644594524760,18.7201,106.9,106.82,0.024]
[1644594529161,18.7201,106.9,106.82,6.024]
[1644594529563,18.7201,106.9,106.82,0.024]
[1644594529762,18.7201,106.9,106.82,20.0671]
[1644594530462,18.7201,106.9,106.82,14.0671]
[1644594530662,18.7201,106.9,106.82,0.024]